[Event "CCT Chessable Masters Play-In 2025"]
[Site "Online"]
[Date "2025.02.17"]
[Round "4.64"]
[White "Kobalia, Mikhail"]
[Black "Nesterov, Arseniy"]
[Result "1/2-1/2"]
[ECO "C43"]
[WhiteElo "2538"]
[BlackElo "2591"]
[PlyCount "98"]
[EventDate "2025.02.13"]
[EventType "swiss"]
[EventCountry "NET"]
[TimeControl "600"]
[WhiteClock "0:01:18"]
[BlackClock "0:01:03"]

1. e4 {[%emt 0:00:32]} e5 {[%emt 0:00:01]} 2. Nf3 {[%emt 0:00:02]} Nf6 {[%emt 0:00:01]} 3. d4 {[%emt 0:00:02]} Nxe4 {[%emt 0:00:01]} 4. Bd3 {[%emt 0:00:00]} d5 {[%emt 0:00:00]} 5. Nxe5 {[%emt 0:00:01]} Nd7 {[%emt 0:00:00]} 6. Nxd7 {[%emt 0:00:01]} Bxd7 {[%emt 0:00:01]} 7. O-O {[%emt 0:00:16]} Bd6 {[%emt 0:00:01]} 8. Nc3 {[%emt 0:00:02]} Nxc3 {[%emt 0:00:01]} 9. bxc3 {[%emt 0:00:01]} h5 {[%emt 0:00:00]} 10. Re1+ {[%emt 0:00:58]} Kf8 {[%emt 0:00:01]} 11. a4 {[%emt 0:00:08]} Qf6 {[%emt 0:00:35]} 12. Qd2 {[%emt 0:00:39]} g6 {[%emt 0:00:29]} 13. Ba3 {[%emt 0:00:17]} Bxa3 {[%emt 0:00:23]} 14. Rxa3 {[%emt 0:00:00]} Kg7 {[%emt 0:00:00]} 15. Re5 {[%emt 0:00:21]} Qd6 {[%emt 0:00:46]} 16. Ra1 {[%emt 0:00:05]} Rae8 {[%emt 0:00:11]} 17. f4 {[%emt 0:00:23]} f6 {[%emt 0:00:14]} 18. Rxe8 {[%emt 0:00:01]} Rxe8 {[%emt 0:00:00]} 19. a5 {[%emt 0:00:01]} c5 {[%emt 0:00:37]} 20. Rb1 {[%emt 0:00:18]} c4 {[%emt 0:00:58]} 21. Be2 {[%emt 0:00:04]} b5 {[%emt 0:00:15]} 22. axb6 {[%emt 0:00:05]} axb6 {[%emt 0:00:01]} 23. Bf3 {[%emt 0:00:08]} Bg4 {[%emt 0:00:01]} 24. Qf2 {[%emt 0:01:08]} Qxf4 {[%emt 0:00:15]} 25. Bxd5 {[%emt 0:00:17]} Qxf2+ {[%emt 0:00:01]} 26. Kxf2 {[%emt 0:00:00]} Re2+ {[%emt 0:00:01]} 27. Kg1 {[%emt 0:00:08]} Rxc2 {[%emt 0:00:01]} 28. Bxc4 {[%emt 0:00:25]} Rxc3 {[%emt 0:00:01]} 29. Bd5 {[%emt 0:00:10]} Rd3 {[%emt 0:00:16]} 30. Rb4 {[%emt 0:00:07]} Bf5 {[%emt 0:00:24]} 31. Kf2 {[%emt 0:00:10]} h4 {[%emt 0:00:23]} 32. Ke2 {[%emt 0:00:12]} g5 {[%emt 0:00:09]} 33. h3 {[%emt 0:00:17]} b5 {[%emt 0:00:20]} 34. Be6 {[%emt 0:00:31]} Rxd4 {[%emt 0:00:58]} 35. Rxd4 {[%emt 0:00:05]} Bxe6 {[%emt 0:00:00]} 36. Rd6 {[%emt 0:00:03]} Bc4+ {[%emt 0:00:02]} 37. Kf3 {[%emt 0:00:02]} Kg6 {[%emt 0:00:00]} 38. Ke4 {[%emt 0:00:08]} b4 {[%emt 0:00:31]} 39. Rb6 {[%emt 0:00:11]} b3 {[%emt 0:00:02]} 40. Rb4 {[%emt 0:00:01]} Bf7 {[%emt 0:00:04]} 41. Rb6 {[%emt 0:00:02]} Bg8 {[%emt 0:00:06]} 42. Rb7 {[%emt 0:00:03]} Bc4 {[%emt 0:00:32]} 43. Rb4 {[%emt 0:00:02]} Be6 {[%emt 0:00:01]} 44. Rb6 {[%emt 0:00:02]} Kf7 {[%emt 0:00:03]} 45. Rb7+ {[%emt 0:00:01]} Kf8 {[%emt 0:00:06]} 46. Kd4 {[%emt 0:00:04]} Bf7 {[%emt 0:00:01]} 47. Ke4 {[%emt 0:00:06]} Be6 {[%emt 0:00:01]} 48. Kd4 {[%emt 0:00:01]} Bf7 {[%emt 0:00:01]} 49. Ke4 {[%emt 0:00:01]} Be6 {[%emt 0:00:01]} 1/2-1/2

[Event "CCT Chessable Masters Play-In 2025"]
[Site "Online"]
[Date "2025.02.17"]
[Round "4.65"]
[White "Bilguun, Sumiya"]
[Black "Vakhidov, Jakhongir"]
[Result "1-0"]
[ECO "B23"]
[WhiteElo "2460"]
[BlackElo "2546"]
[PlyCount "75"]
[EventDate "2025.02.13"]
[EventType "swiss"]
[EventCountry "NET"]
[TimeControl "600"]
[WhiteClock "0:02:34"]
[BlackClock "0:03:08"]

1. e4 {[%emt 0:00:29]} c5 {[%emt 0:00:02]} 2. Nc3 {[%emt 0:00:02]} Nc6 {[%emt 0:00:01]} 3. Bb5 {[%emt 0:00:02]} Nd4 {[%emt 0:00:02]} 4. Nf3 {[%emt 0:00:01]} a6 {[%emt 0:00:01]} 5. Bd3 {[%emt 0:00:02]} g6 {[%emt 0:00:01]} 6. Nxd4 {[%emt 0:00:02]} cxd4 {[%emt 0:00:02]} 7. Ne2 {[%emt 0:00:01]} d5 {[%emt 0:00:12]} 8. exd5 {[%emt 0:00:07]} Qxd5 {[%emt 0:00:06]} 9. O-O {[%emt 0:00:02]} Bg7 {[%emt 0:00:14]} 10. b3 {[%emt 0:00:14]} Nh6 {[%emt 0:00:17]} 11. Ba3 {[%emt 0:00:10]} Nf5 {[%emt 0:00:19]} 12. Ng3 {[%emt 0:00:10]} Nd6 {[%emt 0:00:46]} 13. Re1 {[%emt 0:00:05]} Be6 {[%emt 0:00:05]} 14. Ne4 {[%emt 0:00:09]} Nxe4 {[%emt 0:00:20]} 15. Bxe4 {[%emt 0:00:03]} Qd7 {[%emt 0:00:03]} 16. Qf3 {[%emt 0:00:04]} Rb8 {[%emt 0:00:11]} 17. c4 {[%emt 0:00:23]} dxc3 {[%emt 0:00:08]} 18. dxc3 {[%emt 0:00:01]} O-O {[%emt 0:00:02]} 19. Rad1 {[%emt 0:00:02]} Qc7 {[%emt 0:00:14]} 20. c4 {[%emt 0:00:04]} b5 {[%emt 0:00:07]} 21. Bd5 {[%emt 0:00:19]} bxc4 {[%emt 0:00:18]} 22. bxc4 {[%emt 0:00:01]} Bxd5 {[%emt 0:00:21]} 23. cxd5 {[%emt 0:00:02]} Rfe8 {[%emt 0:00:03]} 24. Rxe7 {[%emt 0:01:16]} Qxe7 {[%emt 0:01:29]} 25. Bxe7 {[%emt 0:00:06]} Rxe7 {[%emt 0:00:00]} 26. d6 {[%emt 0:00:16]} Rd7 {[%emt 0:00:01]} 27. Qc6 {[%emt 0:00:01]} Rbd8 {[%emt 0:00:02]} 28. Qxa6 {[%emt 0:00:17]} Bf8 {[%emt 0:00:01]} 29. g3 {[%emt 0:00:02]} Rxd6 {[%emt 0:00:03]} 30. Rxd6 {[%emt 0:00:01]} Rxd6 {[%emt 0:00:00]} 31. Qa8 {[%emt 0:00:02]} Rd2 {[%emt 0:00:02]} 32. a4 {[%emt 0:00:03]} Kg7 {[%emt 0:00:14]} 33. Qc6 {[%emt 0:00:24]} Ra2 {[%emt 0:00:10]} 34. a5 {[%emt 0:00:44]} Bb4 {[%emt 0:00:03]} 35. a6 {[%emt 0:00:01]} Be1 {[%emt 0:00:01]} 36. Qc4 {[%emt 0:00:21]} Ra3 {[%emt 0:00:38]} 37. Qd4+ {[%emt 0:01:09]} Kg8 {[%emt 0:00:13]} 38. a7 {[%emt 0:00:08]} 1-0

[Event "CCT Chessable Masters Play-In 2025"]
[Site "Online"]
[Date "2025.02.17"]
[Round "4.66"]
[White "Henriquez Villagra, Cristobal"]
[Black "Cuenca Jimenez, Jose Fernando"]
[Result "1-0"]
[ECO "D02"]
[WhiteElo "2597"]
[BlackElo "2479"]
[PlyCount "83"]
[EventDate "2025.02.13"]
[EventType "swiss"]
[EventCountry "NET"]
[TimeControl "600"]
[WhiteClock "0:00:32"]
[BlackClock "0:00:04"]

1. d4 {[%emt 0:00:02]} d5 {[%emt 0:00:33]} 2. Nf3 {[%emt 0:00:30]} Nf6 {[%emt 0:00:02]} 3. Bf4 {[%emt 0:00:01]} c5 {[%emt 0:00:04]} 4. e3 {[%emt 0:00:01]} Nc6 {[%emt 0:00:06]} 5. Be2 {[%emt 0:00:02]} Bg4 {[%emt 0:00:23]} 6. O-O {[%emt 0:00:10]} e6 {[%emt 0:00:05]} 7. c3 {[%emt 0:00:39]} Bd6 {[%emt 0:00:12]} 8. dxc5 {[%emt 0:00:18]} Bxc5 {[%emt 0:00:08]} 9. Qb3 {[%emt 0:00:51]} Qe7 {[%emt 0:00:25]} 10. Nbd2 {[%emt 0:00:09]} e5 {[%emt 0:01:00]} 11. Bg5 {[%emt 0:00:28]} e4 {[%emt 0:00:03]} 12. Nd4 {[%emt 0:00:36]} Nxd4 {[%emt 0:00:02]} 13. cxd4 {[%emt 0:00:03]} Bxe2 {[%emt 0:00:02]} 14. Rfe1 {[%emt 0:00:01]} Bd3 {[%emt 0:01:25]} 15. dxc5 {[%emt 0:00:03]} Qxc5 {[%emt 0:01:11]} 16. Qxb7 {[%emt 0:00:36]} O-O {[%emt 0:00:03]} 17. Bxf6 {[%emt 0:00:10]} gxf6 {[%emt 0:00:00]} 18. Nb3 {[%emt 0:00:03]} Qd6 {[%emt 0:00:37]} 19. Rec1 {[%emt 0:00:21]} Rfb8 {[%emt 0:00:06]} 20. Qc6 {[%emt 0:00:37]} Qxc6 {[%emt 0:00:10]} 21. Rxc6 {[%emt 0:00:00]} a5 {[%emt 0:00:02]} 22. Rxf6 {[%emt 0:00:37]} a4 {[%emt 0:00:01]} 23. Nd4 {[%emt 0:00:02]} Rxb2 {[%emt 0:00:01]} 24. a3 {[%emt 0:00:01]} Rab8 {[%emt 0:00:27]} 25. g4 {[%emt 0:00:01]} Rb1+ {[%emt 0:00:17]} 26. Rxb1 {[%emt 0:00:01]} Rxb1+ {[%emt 0:00:00]} 27. Kg2 {[%emt 0:00:00]} Ra1 {[%emt 0:00:10]} 28. Rc6 {[%emt 0:00:02]} Rxa3 {[%emt 0:00:08]} 29. Rc8+ {[%emt 0:01:59]} Kg7 {[%emt 0:00:01]} 30. Kg3 {[%emt 0:00:12]} f6 {[%emt 0:00:21]} 31. Nf5+ {[%emt 0:00:18]} Kf7 {[%emt 0:00:04]} 32. Rc7+ {[%emt 0:00:02]} Kf8 {[%emt 0:00:23]} 33. g5 {[%emt 0:00:15]} fxg5 {[%emt 0:00:04]} 34. Kg4 {[%emt 0:00:00]} Ke8 {[%emt 0:00:18]} 35. Ng7+ {[%emt 0:00:07]} Kd8 {[%emt 0:00:10]} 36. Ne6+ {[%emt 0:00:01]} Ke8 {[%emt 0:00:01]} 37. Kxg5 {[%emt 0:00:00]} Ra2 {[%emt 0:00:01]} 38. f4 {[%emt 0:00:02]} Rg2+ {[%emt 0:00:09]} 39. Kf6 {[%emt 0:00:00]} Rg6+ {[%emt 0:00:02]} 40. Ke5 {[%emt 0:00:01]} a3 {[%emt 0:00:27]} 41. f5 {[%emt 0:00:02]} Rh6 {[%emt 0:00:12]} 42. Kd6 {[%emt 0:00:04]} 1-0

[Event "CCT Chessable Masters Play-In 2025"]
[Site "Online"]
[Date "2025.02.17"]
[Round "4.67"]
[White "Munkhgal, Gombosuren"]
[Black "Smirnov, Pavel"]
[Result "0-1"]
[ECO "D00"]
[WhiteElo "2406"]
[BlackElo "2476"]
[PlyCount "52"]
[EventDate "2025.02.13"]
[EventType "swiss"]
[EventCountry "NET"]
[TimeControl "600"]
[WhiteClock "0:07:11"]
[BlackClock "0:05:44"]

1. d4 {[%emt 0:00:01]} Nf6 {[%emt 0:00:07]} 2. Bf4 {[%emt 0:00:00]} d5 {[%emt 0:00:03]} 3. e3 {[%emt 0:00:01]} Bf5 {[%emt 0:00:01]} 4. c4 {[%emt 0:00:01]} e6 {[%emt 0:00:02]} 5. Nc3 {[%emt 0:00:00]} Bb4 {[%emt 0:00:03]} 6. Nge2 {[%emt 0:00:02]} dxc4 {[%emt 0:00:09]} 7. Ng3 {[%emt 0:00:08]} Nd5 {[%emt 0:00:08]} 8. Nxf5 {[%emt 0:00:14]} exf5 {[%emt 0:00:34]} 9. Bxc4 {[%emt 0:00:46]} Nxc3 {[%emt 0:00:07]} 10. bxc3 {[%emt 0:00:12]} Bxc3+ {[%emt 0:00:02]} 11. Ke2 {[%emt 0:00:02]} Bxa1 {[%emt 0:00:01]} 12. Qb3 {[%emt 0:00:00]} O-O {[%emt 0:00:14]} 13. Qxb7 {[%emt 0:00:03]} Nd7 {[%emt 0:00:10]} 14. Rxa1 {[%emt 0:00:01]} Rb8 {[%emt 0:00:15]} 15. Qxa7 {[%emt 0:00:04]} Rb2+ {[%emt 0:00:04]} 16. Kf1 {[%emt 0:00:02]} Nb6 {[%emt 0:01:12]} 17. Bb3 {[%emt 0:00:12]} Qh4 {[%emt 0:00:25]} 18. Bg3 {[%emt 0:00:04]} Qe4 {[%emt 0:00:07]} 19. Qxc7 {[%emt 0:00:04]} Qd3+ {[%emt 0:00:05]} 20. Kg1 {[%emt 0:00:17]} Rb1+ {[%emt 0:00:02]} 21. Qc1 {[%emt 0:00:01]} Rxc1+ {[%emt 0:00:08]} 22. Rxc1 {[%emt 0:00:00]} Rc8 {[%emt 0:00:03]} 23. Rf1 {[%emt 0:00:06]} Nc4 {[%emt 0:00:04]} 24. h4 {[%emt 0:00:00]} Nd2 {[%emt 0:00:03]} 25. Rd1 {[%emt 0:00:01]} Qe2 {[%emt 0:00:02]} 26. Ba4 {[%emt 0:00:27]} Ne4 {[%emt 0:00:05]} 0-1

[Event "CCT Chessable Masters Play-In 2025"]
[Site "Online"]
[Date "2025.02.17"]
[Round "4.68"]
[White "Mikhalevski, Victor"]
[Black "Lagarde, Maxime"]
[Result "0-1"]
[ECO "A85"]
[WhiteElo "2506"]
[BlackElo "2604"]
[PlyCount "82"]
[EventDate "2025.02.13"]
[EventType "swiss"]
[EventCountry "NET"]
[TimeControl "600"]
[WhiteClock "0:03:24"]
[BlackClock "0:03:45"]

1. d4 {[%emt 0:00:01]} f5 {[%emt 0:00:13]} 2. c4 {[%emt 0:00:05]} Nf6 {[%emt 0:00:01]} 3. Nc3 {[%emt 0:00:02]} d6 {[%emt 0:00:01]} 4. Bg5 {[%emt 0:00:10]} Nbd7 {[%emt 0:00:06]} 5. e3 {[%emt 0:00:10]} h6 {[%emt 0:00:03]} 6. Bh4 {[%emt 0:00:03]} g5 {[%emt 0:00:08]} 7. Bg3 {[%emt 0:00:01]} Bg7 {[%emt 0:00:02]} 8. Bd3 {[%emt 0:00:02]} e6 {[%emt 0:00:02]} 9. Nge2 {[%emt 0:00:03]} a6 {[%emt 0:00:03]} 10. f3 {[%emt 0:00:02]} Qe7 {[%emt 0:00:05]} 11. Qc2 {[%emt 0:00:04]} O-O {[%emt 0:00:27]} 12. O-O-O {[%emt 0:00:02]} b5 {[%emt 0:00:13]} 13. cxb5 {[%emt 0:00:37]} axb5 {[%emt 0:00:06]} 14. Bxb5 {[%emt 0:00:01]} Ba6 {[%emt 0:00:06]} 15. Bc6 {[%emt 0:00:34]} Ra7 {[%emt 0:00:03]} 16. e4 {[%emt 0:00:07]} Rb8 {[%emt 0:00:34]} 17. exf5 {[%emt 0:00:07]} exf5 {[%emt 0:00:03]} 18. Qxf5 {[%emt 0:00:06]} Bxe2 {[%emt 0:00:15]} 19. Rhe1 {[%emt 0:00:03]} Qe3+ {[%emt 0:00:14]} 20. Rd2 {[%emt 0:00:53]} Rxb2 {[%emt 0:00:02]} 21. Kxb2 {[%emt 0:00:31]} Qxd2+ {[%emt 0:00:08]} 22. Qc2 {[%emt 0:00:03]} Qxc2+ {[%emt 0:00:13]} 23. Kxc2 {[%emt 0:00:02]} Bc4 {[%emt 0:00:04]} 24. Re7 {[%emt 0:00:03]} Nb8 {[%emt 0:00:48]} 25. Bb5 {[%emt 0:00:20]} Bxb5 {[%emt 0:00:13]} 26. Nxb5 {[%emt 0:00:01]} Rxa2+ {[%emt 0:00:02]} 27. Kb1 {[%emt 0:00:19]} Rxg2 {[%emt 0:00:22]} 28. Rxc7 {[%emt 0:00:04]} Na6 {[%emt 0:00:05]} 29. Rc8+ {[%emt 0:00:07]} Kh7 {[%emt 0:00:01]} 30. Bxd6 {[%emt 0:00:02]} Nd5 {[%emt 0:00:07]} 31. Be5 {[%emt 0:00:36]} Bxe5 {[%emt 0:00:12]} 32. dxe5 {[%emt 0:00:02]} Rxh2 {[%emt 0:00:00]} 33. Nd4 {[%emt 0:00:10]} Nac7 {[%emt 0:00:20]} 34. e6 {[%emt 0:00:05]} Rh1+ {[%emt 0:00:02]} 35. Kb2 {[%emt 0:00:07]} Re1 {[%emt 0:00:00]} 36. Rd8 {[%emt 0:00:07]} Kg6 {[%emt 0:00:15]} 37. Kc2 {[%emt 0:00:06]} Nf4 {[%emt 0:00:13]} 38. Kd2 {[%emt 0:00:13]} Ncxe6 {[%emt 0:00:15]} 39. Rg8+ {[%emt 0:00:15]} Kf7 {[%emt 0:00:03]} 40. Kxe1 {[%emt 0:00:05]} Kxg8 {[%emt 0:00:03]} 41. Nf5 {[%emt 0:00:05]} Kh7 {[%emt 0:00:02]} 0-1

[Event "CCT Chessable Masters Play-In 2025"]
[Site "Online"]
[Date "2025.02.17"]
[Round "4.69"]
[White "Yang, Kaiqi"]
[Black "Demidov, Mikhail"]
[Result "0-1"]
[ECO "A36"]
[WhiteElo "2481"]
[BlackElo "2549"]
[PlyCount "96"]
[EventDate "2025.02.13"]
[EventType "swiss"]
[EventCountry "NET"]
[TimeControl "600"]
[BlackClock "0:04:34"]

1. c4 {[%emt 0:00:01]} g6 {[%emt 0:00:11]} 2. Nc3 {[%emt 0:00:02]} Bg7 {[%emt 0:00:02]} 3. g3 {[%emt 0:00:01]} c5 {[%emt 0:00:06]} 4. Bg2 {[%emt 0:00:01]} d6 {[%emt 0:00:03]} 5. e4 {[%emt 0:00:05]} Nc6 {[%emt 0:00:02]} 6. Nge2 {[%emt 0:00:00]} Bg4 {[%emt 0:00:09]} 7. f3 {[%emt 0:00:07]} Bd7 {[%emt 0:00:05]} 8. d3 {[%emt 0:00:03]} a6 {[%emt 0:00:11]} 9. a4 {[%emt 0:00:19]} e6 {[%emt 0:00:02]} 10. Be3 {[%emt 0:00:04]} Nd4 {[%emt 0:00:01]} 11. Rb1 {[%emt 0:00:24]} Ne7 {[%emt 0:00:08]} 12. O-O {[%emt 0:00:15]} Nec6 {[%emt 0:00:03]} 13. f4 {[%emt 0:00:18]} O-O {[%emt 0:00:09]} 14. g4 {[%emt 0:01:07]} f5 {[%emt 0:00:03]} 15. Ng3 {[%emt 0:00:41]} Rb8 {[%emt 0:01:01]} 16. Kh1 {[%emt 0:00:48]} fxg4 {[%emt 0:00:14]} 17. Qxg4 {[%emt 0:00:05]} b5 {[%emt 0:00:01]} 18. axb5 {[%emt 0:00:10]} axb5 {[%emt 0:00:01]} 19. cxb5 {[%emt 0:00:37]} Nxb5 {[%emt 0:00:11]} 20. Nxb5 {[%emt 0:00:26]} Rxb5 {[%emt 0:00:01]} 21. f5 {[%emt 0:00:01]} Ne5 {[%emt 0:00:08]} 22. Qe2 {[%emt 0:00:27]} Rb3 {[%emt 0:00:04]} 23. fxe6 {[%emt 0:01:06]} Bxe6 {[%emt 0:00:08]} 24. Rxf8+ {[%emt 0:00:04]} Qxf8 {[%emt 0:00:00]} 25. d4 {[%emt 0:01:23]} Bc4 {[%emt 0:00:53]} 26. Qc2 {[%emt 0:00:33]} Rxe3 {[%emt 0:00:07]} 27. dxe5 {[%emt 0:00:01]} Bd3 {[%emt 0:00:02]} 28. Qc1 {[%emt 0:00:13]} Bxe5 {[%emt 0:00:10]} 29. Qxe3 {[%emt 0:00:05]} Bxb1 {[%emt 0:00:01]} 30. Bf1 {[%emt 0:00:03]} Ba2 {[%emt 0:00:08]} 31. b3 {[%emt 0:00:02]} Qf4 {[%emt 0:00:07]} 32. Bc4+ {[%emt 0:00:01]} Kg7 {[%emt 0:00:04]} 33. Qxf4 {[%emt 0:00:06]} Bxf4 {[%emt 0:00:01]} 34. Ne2 {[%emt 0:00:01]} Bd2 {[%emt 0:00:07]} 35. Kg2 {[%emt 0:00:02]} Bb1 {[%emt 0:00:01]} 36. Kf3 {[%emt 0:00:00]} Bc2 {[%emt 0:00:01]} 37. Nf4 {[%emt 0:00:02]} g5 {[%emt 0:00:06]} 38. Ne6+ {[%emt 0:00:03]} Kf6 {[%emt 0:00:02]} 39. Bd5 {[%emt 0:00:02]} h5 {[%emt 0:00:04]} 40. h3 {[%emt 0:00:01]} Bd1+ {[%emt 0:00:03]} 41. Kg3 {[%emt 0:00:02]} Be1+ {[%emt 0:00:01]} 42. Kg2 {[%emt 0:00:01]} g4 {[%emt 0:00:02]} 43. hxg4 {[%emt 0:00:00]} Bxg4 {[%emt 0:00:05]} 44. Nf4 {[%emt 0:00:01]} Bd2 {[%emt 0:00:06]} 45. Nd3 {[%emt 0:00:01]} Be3 {[%emt 0:00:06]} 46. Kg3 {[%emt 0:00:02]} Kg5 {[%emt 0:00:01]} 47. e5 {[%emt 0:00:01]} dxe5 {[%emt 0:00:01]} 48. Be4 h4+ {[%emt 0:00:03]} 0-1

[Event "CCT Chessable Masters Play-In 2025"]
[Site "Online"]
[Date "2025.02.17"]
[Round "4.70"]
[White "Keymer, Vincent"]
[Black "Bachmann, Axel"]
[Result "1/2-1/2"]
[ECO "A07"]
[WhiteElo "2731"]
[BlackElo "2570"]
[PlyCount "89"]
[EventDate "2025.02.13"]
[EventType "swiss"]
[EventCountry "NET"]
[TimeControl "600"]
[WhiteClock "0:02:52"]
[BlackClock "0:01:22"]

1. b3 {[%emt 0:00:01]} d5 {[%emt 0:00:02]} 2. Bb2 {[%emt 0:00:01]} Bf5 {[%emt 0:00:01]} 3. Nf3 {[%emt 0:00:01]} Nf6 {[%emt 0:00:00]} 4. g3 {[%emt 0:00:03]} e6 {[%emt 0:00:01]} 5. Bg2 {[%emt 0:00:01]} h6 {[%emt 0:00:01]} 6. O-O {[%emt 0:00:02]} Be7 {[%emt 0:00:01]} 7. d3 {[%emt 0:00:00]} O-O {[%emt 0:00:01]} 8. Nc3 {[%emt 0:00:01]} Bh7 {[%emt 0:00:03]} 9. e4 {[%emt 0:00:01]} c6 {[%emt 0:00:07]} 10. Qe2 {[%emt 0:00:01]} a5 {[%emt 0:00:01]} 11. a4 {[%emt 0:00:01]} Na6 {[%emt 0:00:02]} 12. Ne1 {[%emt 0:00:08]} Nb4 {[%emt 0:00:03]} 13. Rd1 {[%emt 0:00:05]} Qb6 {[%emt 0:00:16]} 14. h3 {[%emt 0:00:02]} dxe4 {[%emt 0:00:02]} 15. Nxe4 {[%emt 0:00:06]} Nxe4 {[%emt 0:00:03]} 16. dxe4 {[%emt 0:00:00]} Rfd8 {[%emt 0:00:03]} 17. Nf3 {[%emt 0:00:03]} Qc5 {[%emt 0:00:25]} 18. c3 {[%emt 0:00:09]} Na6 {[%emt 0:00:02]} 19. Nd4 {[%emt 0:00:13]} Qb6 {[%emt 0:00:01]} 20. Kh2 {[%emt 0:00:08]} e5 {[%emt 0:00:19]} 21. Nf3 {[%emt 0:00:05]} Qxb3 {[%emt 0:00:42]} 22. Nxe5 {[%emt 0:00:01]} Nc5 {[%emt 0:00:01]} 23. c4 {[%emt 0:00:19]} Bf6 {[%emt 0:00:16]} 24. Ba1 {[%emt 0:00:08]} Rxd1 {[%emt 0:01:56]} 25. Rxd1 {[%emt 0:00:00]} Qxa4 {[%emt 0:00:30]} 26. Rb1 {[%emt 0:00:04]} Bxe5 {[%emt 0:00:13]} 27. Bxe5 {[%emt 0:00:02]} Re8 {[%emt 0:00:01]} 28. Bd4 {[%emt 0:00:24]} Nxe4 {[%emt 0:00:07]} 29. Rxb7 {[%emt 0:00:02]} c5 {[%emt 0:00:09]} 30. Bb2 {[%emt 0:00:45]} Bg6 {[%emt 0:00:39]} 31. Qd3 {[%emt 0:00:18]} Kh7 {[%emt 0:00:31]} 32. Bxe4 {[%emt 0:00:24]} Rxe4 {[%emt 0:00:10]} 33. Qd6 {[%emt 0:01:28]} Qc2 {[%emt 0:00:27]} 34. Qxc5 {[%emt 0:00:04]} Rxc4 {[%emt 0:00:09]} 35. Qa7 {[%emt 0:00:04]} Qe2 {[%emt 0:00:17]} 36. Rxf7 {[%emt 0:01:16]} Bxf7 {[%emt 0:00:00]} 37. Qxf7 {[%emt 0:00:00]} Qxb2 {[%emt 0:00:02]} 38. Qf5+ {[%emt 0:00:02]} Kg8 {[%emt 0:00:01]} 39. Qe6+ {[%emt 0:00:04]} Kf8 {[%emt 0:00:00]} 40. Qd6+ {[%emt 0:00:09]} Kf7 {[%emt 0:00:07]} 41. Qd7+ {[%emt 0:00:13]} Kg6 {[%emt 0:00:10]} 42. Qd3+ {[%emt 0:00:02]} Kf7 {[%emt 0:00:21]} 43. Qd7+ {[%emt 0:00:02]} Kf8 {[%emt 0:00:09]} 44. Qd8+ {[%emt 0:00:02]} Kf7 {[%emt 0:00:06]} 45. Qd7+ {[%emt 0:00:03]} 1/2-1/2

[Event "CCT Chessable Masters Play-In 2025"]
[Site "Online"]
[Date "2025.02.17"]
[Round "4.71"]
[White "Gharibyan, Mamikon"]
[Black "Dominguez Perez, Leinier"]
[Result "0-1"]
[ECO "B87"]
[WhiteElo "2473"]
[BlackElo "2602"]
[PlyCount "84"]
[EventDate "2025.02.13"]
[EventType "swiss"]
[EventCountry "NET"]
[TimeControl "600"]
[WhiteClock "0:00:17"]
[BlackClock "0:00:42"]

1. e4 {[%emt 0:00:02]} c5 {[%emt 0:00:22]} 2. Nf3 {[%emt 0:00:01]} d6 {[%emt 0:00:01]} 3. d4 {[%emt 0:00:01]} cxd4 {[%emt 0:00:01]} 4. Nxd4 {[%emt 0:00:00]} Nf6 {[%emt 0:00:01]} 5. Nc3 {[%emt 0:00:01]} a6 {[%emt 0:00:00]} 6. Bc4 {[%emt 0:00:01]} e6 {[%emt 0:00:01]} 7. Be3 {[%emt 0:00:02]} b5 {[%emt 0:00:02]} 8. Bb3 {[%emt 0:00:01]} Be7 {[%emt 0:00:00]} 9. a3 {[%emt 0:00:01]} O-O {[%emt 0:00:02]} 10. Qe2 {[%emt 0:00:01]} Bb7 {[%emt 0:00:01]} 11. f3 {[%emt 0:00:00]} Nc6 {[%emt 0:00:00]} 12. O-O-O {[%emt 0:00:03]} Na5 {[%emt 0:00:01]} 13. g4 {[%emt 0:00:16]} Rc8 {[%emt 0:00:11]} 14. g5 {[%emt 0:00:10]} Nd7 {[%emt 0:00:06]} 15. Bxe6 {[%emt 0:00:37]} Rxc3 {[%emt 0:00:29]} 16. bxc3 {[%emt 0:00:23]} fxe6 {[%emt 0:00:03]} 17. Nxe6 {[%emt 0:00:00]} Qc8 {[%emt 0:00:03]} 18. Nxf8 {[%emt 0:00:03]} Qxc3 {[%emt 0:00:36]} 19. Kb1 {[%emt 0:01:21]} Bxf8 {[%emt 0:00:02]} 20. Bc1 {[%emt 0:00:12]} Nc4 {[%emt 0:00:10]} 21. Rd3 {[%emt 0:00:45]} Qe5 {[%emt 0:00:02]} 22. c3 {[%emt 0:00:37]} Nc5 {[%emt 0:00:03]} 23. Rd4 {[%emt 0:00:01]} Qe6 {[%emt 0:00:34]} 24. Rhd1 {[%emt 0:00:11]} Nb3 {[%emt 0:00:25]} 25. Rxc4 {[%emt 0:00:27]} bxc4 {[%emt 0:00:02]} 26. Be3 {[%emt 0:00:03]} d5 {[%emt 0:00:16]} 27. Kc2 {[%emt 0:00:25]} Bc6 {[%emt 0:00:37]} 28. Qg2 {[%emt 0:00:10]} dxe4 {[%emt 0:00:14]} 29. f4 {[%emt 0:00:01]} Be7 {[%emt 0:00:39]} 30. f5 {[%emt 0:01:30]} Qxf5 {[%emt 0:00:06]} 31. Rf1 {[%emt 0:00:03]} Qe6 {[%emt 0:00:22]} 32. h4 {[%emt 0:00:13]} Nc5 {[%emt 0:00:17]} 33. Qg3 {[%emt 0:00:06]} Qd6 {[%emt 0:00:52]} 34. Qf2 {[%emt 0:00:43]} Ba4+ {[%emt 0:00:31]} 35. Kb1 {[%emt 0:00:07]} Qd3+ {[%emt 0:00:02]} 36. Kb2 {[%emt 0:00:05]} Be8 {[%emt 0:00:27]} 37. Bxc5 {[%emt 0:00:17]} Bxc5 {[%emt 0:00:02]} 38. Qf5 {[%emt 0:00:02]} Qd6 {[%emt 0:00:58]} 39. Qxe4 {[%emt 0:00:01]} Bxa3+ {[%emt 0:00:15]} 40. Ka1 {[%emt 0:00:15]} Qc6 {[%emt 0:00:10]} 41. Qe5 {[%emt 0:00:14]} Bf8 {[%emt 0:00:07]} 42. Kb2 {[%emt 0:00:11]} Qg2+ {[%emt 0:00:05]} 0-1